fUST/lending_fUST_20241018
["ID","MTS","AMOUNT","RATE_DAILY","PERIOD"]
[340441813,1729245094667,-1112.06,0.0001589,2]
[340441814,1729245094677,-500.0,0.0001589,2]
[340441815,1729245094686,-942.61,0.0001589,2]
[340441816,1729245094695,-500.0,0.0001589,2]
[340441817,1729245094704,-694.02,0.0001589,2]
[340441818,1729245094713,-596.68030744,0.0001589,2]
[340441819,1729245094723,-500.0,0.0001589,2]
[340441820,1729245094732,-1028.28,0.0001589,2]
[340441821,1729245094742,-500.0,0.0001589,2]
[340441822,1729245094752,-500.0,0.0001589,2]
[340441823,1729245094762,-500.0,0.0001589,2]
[340441824,1729245094771,-500.0,0.0001589,2]
[340441825,1729245094781,-500.0,0.0001589,2]
[340441826,1729245094790,-500.0,0.0001589,2]
[340441827,1729245094800,-484.56096295,0.0001589,2]
[340441828,1729245094811,-500.0,0.0001589,2]
[340441829,1729245094825,-500.0,0.0001589,2]
[340441830,1729245094834,-511.59870921,0.0001589,2]
[340441831,1729245094843,-500.0,0.0001589,2]
[340441832,1729245094852,-1032.9,0.0001589,2]
[340441833,1729245094861,-500.0,0.0001589,2]
[340441834,1729245094871,-500.0,0.0001589,2]
[340441835,1729245094881,-1307.02,0.0001589,2]
[340441836,1729245094890,-500.0,0.0001589,2]
[340441837,1729245094899,-555.80093086,0.0001589,2]
[340441838,1729245094908,-500.0,0.0001589,2]
[340441839,1729245094919,-500.0,0.0001589,2]
[340441840,1729245094928,-500.0,0.0001589,2]
[340441841,1729245095078,-1007.91,0.0001589,2]
[340441842,1729245095087,-719.96,0.0001589,2]
[340441843,1729245095097,-872.66,0.0001589,2]
[340441844,1729245095107,-500.0,0.0001589,2]
[340441845,1729245095116,-500.0,0.0001589,2]
[340441846,1729245095127,-915.43,0.0001589,2]
[340441847,1729245095136,-500.0,0.0001589,2]
[340441848,1729245095146,-364.07861046,0.0001589,2]
[340441849,1729245095155,-1054.91,0.0001589,2]
[340441850,1729245095165,-507.51214525,0.0001589,2]
[340441851,1729245095174,-500.0,0.0001589,2]
[340441852,1729245095183,-500.0,0.0001589,2]
[340441853,1729245095192,-500.0,0.0001589,2]
[340441854,1729245095202,-500.0,0.0001589,2]
[340441855,1729245095212,-531.47,0.0001589,2]
[340441856,1729245095222,-509.46237878,0.0001589,2]
[340441857,1729245095232,-500.0,0.0001589,2]
[340441858,1729245095241,-552.26519135,0.0001589,2]
[340441859,1729245095251,-1046.71,0.0001589,2]
[340441860,1729245095261,-1013.1,0.0001589,2]
[340441861,1729245095271,-500.0,0.0001589,2]
[340441862,1729245095280,-500.0,0.0001589,2]
[340441863,1729245095290,-500.0,0.0001589,2]
[340441864,1729245095299,-1107.34,0.0001589,2]
[340441865,1729245095308,-530.76381672,0.0001589,2]
[340441866,1729245095318,-1014.96,0.0001589,2]
[340441867,1729245095327,-500.0,0.0001589,2]
[340441868,1729245095337,-779.88,0.0001589,2]
[340441869,1729245095346,-500.0,0.0001589,2]
[340441870,1729245095356,-500.0,0.0001589,2]
[340441871,1729245095366,-675.89,0.0001589,2]
[340441872,1729245095375,-1425.42,0.0001589,2]
[340441873,1729245095385,-500.0,0.0001589,2]
[340441874,1729245095394,-500.0,0.0001589,2]
[340441875,1729245095405,-500.0,0.0001589,2]
[340441876,1729245095414,-500.0,0.0001589,2]
[340441877,1729245095425,-858.13,0.0001589,2]
[340441878,1729245095434,-741.88,0.0001589,2]
[340441879,1729245095443,-500.0,0.0001589,2]
[340441880,1729245095453,-500.0,0.0001589,2]
[340441881,1729245095463,-1003.38,0.0001589,2]
[340441882,1729245095472,-1103.55,0.0001589,2]
[340441883,1729245095482,-500.0,0.0001589,2]
[340441884,1729245095491,-500.0,0.0001589,2]
[340441885,1729245095501,-500.0,0.0001589,2]
[340441886,1729245095511,-500.0,0.0001589,2]
[340441887,1729245095520,-518.98519993,0.0001589,2]
[340441888,1729245095530,-638.99,0.0001589,2]
[340441889,1729245095540,-500.0,0.0001589,2]
[340441890,1729245095549,-500.0,0.0001589,2]
[340441891,1729245095559,-620.45,0.0001589,2]
[340441892,1729245095570,-679.66,0.0001589,2]
[340441893,1729245095580,-515.1227369,0.0001589,2]
[340441894,1729245095590,-521.66381941,0.0001589,2]
[340441895,1729245095599,-1907.3,0.0001589,2]
[340441896,1729245095609,-500.0,0.0001589,2]
[340441897,1729245095619,-871.12,0.0001589,2]
[340441898,1729245095629,-1037.26,0.0001589,2]
[340441899,1729245095639,-795.76,0.0001589,2]
[340441900,1729245095648,-500.0,0.0001589,2]
[340441901,1729245095659,-500.0,0.0001589,2]
[340441902,1729245095668,-500.0,0.0001589,2]
[340441903,1729245095679,-1051.27,0.0001589,2]
[340441904,1729245095689,-513.83247682,0.0001589,2]
[340441905,1729245095699,-517.33896213,0.0001589,2]
[340441906,1729245095709,-1007.24,0.0001589,2]
[340441907,1729245095719,-506.89325293,0.0001589,2]
[340441908,1729245095729,-1162.07,0.0001589,2]
[340441909,1729245095739,-500.0,0.0001589,2]
[340441910,1729245095748,-500.0,0.0001589,2]
[340441911,1729245095759,-641.02670426,0.0001589,2]
[340441912,1729245095769,-500.0,0.0001589,2]
[340441913,1729245095778,-325.07482999,0.0001589,2]
[340441914,1729245095788,-1243.95,0.0001589,2]
[340441915,1729245095798,-500.0,0.0001589,2]
[340441916,1729245095807,-500.0,0.0001589,2]
[340441917,1729245095818,-500.0,0.0001589,2]
[340441918,1729245095827,-500.0,0.0001589,2]
[340441919,1729245095838,-786.11,0.0001589,2]
[340441920,1729245095848,-500.0,0.0001589,2]
[340441921,1729245095857,-500.0,0.0001589,2]
[340441922,1729245095867,-500.0,0.0001589,2]
[340441923,1729245095876,-676.43,0.0001589,2]
[340441924,1729245095885,-1523.03,0.0001589,2]
[340441925,1729245095895,-1715.25,0.0001589,2]
[340441926,1729245095905,-500.0,0.0001589,2]
[340441927,1729245095916,-500.0,0.0001589,2]
[340441928,1729245095926,-500.0,0.0001589,2]
[340441929,1729245095935,-226.4190729,0.0001589,2]
[340441930,1729245095945,-500.0,0.0001589,2]
[340441931,1729245095956,-439.69522569,0.0001589,2]
[340441932,1729245095966,-500.0,0.0001589,2]
[340441933,1729245095976,-500.0,0.0001589,2]
[340441934,1729245095987,-500.0,0.0001589,2]
[340441935,1729245095999,-500.0,0.0001589,2]
[340441936,1729245096009,-500.0,0.0001589,2]
[340441937,1729245096018,-500.0,0.0001589,2]
[340441938,1729245096027,-1443.01,0.0001589,2]
[340441939,1729245096037,-500.0,0.0001589,2]
[340441940,1729245096047,-1076.09,0.0001589,2]
[340441941,1729245096057,-280.33207506,0.0001589,2]
[340441942,1729245096066,-500.0,0.0001589,2]
[340441943,1729245096076,-962.41,0.0001589,2]
[340441944,1729245096086,-500.0,0.0001589,2]
[340441945,1729245096097,-895.35,0.0001589,2]
[340441946,1729245096106,-500.0,0.0001589,2]
[340441947,1729245096116,-500.0,0.0001589,2]
[340441948,1729245096126,-1226.14,0.0001589,2]
[340441949,1729245096136,-1037.27,0.0001589,2]
[340441950,1729245096146,-751.72,0.0001589,2]
[340441951,1729245096156,-500.0,0.0001589,2]
[340441952,1729245096165,-511.12992199,0.0001589,2]
[340441953,1729245096175,-1070.53,0.0001589,2]
[340441954,1729245096185,-528.50243621,0.0001589,2]
[340441955,1729245096195,-500.0,0.0001589,2]
[340441956,1729245096205,-827.18,0.0001589,2]
[340441957,1729245096215,-518.11738036,0.0001589,2]
[340441958,1729245096225,-500.0,0.0001589,2]
[340441959,1729245096235,-500.0,0.0001589,2]
[340441960,1729245096244,-586.86,0.0001589,2]
[340441961,1729245096254,-500.0,0.0001589,2]
[340441962,1729245096263,-970.57,0.0001589,2]
[340441963,1729245096273,-708.3,0.0001589,2]
[340441964,1729245096283,-500.0,0.0001589,2]
[340441965,1729245096292,-500.0,0.0001589,2]
[340441966,1729245096301,-1460.22,0.0001589,2]
[340441967,1729245096311,-1055.65,0.0001589,2]
[340441968,1729245096321,-604.42,0.0001589,2]
[340441969,1729245096330,-500.0,0.0001589,2]
[340441970,1729245096340,-500.0,0.0001589,2]
[340441971,1729245096349,-551.86,0.0001589,2]
[340441972,1729245096358,-1084.78,0.0001589,2]
[340441973,1729245096368,-500.0,0.0001589,2]
[340441974,1729245096378,-500.0,0.0001589,2]
[340441975,1729245096387,-859.29,0.0001589,2]
[340441976,1729245096396,-500.0,0.0001589,2]
[340441977,1729245096405,-500.0,0.0001589,2]
[340441978,1729245096416,-1043.86,0.0001589,2]
[340441979,1729245096426,-500.0,0.0001589,2]
[340441980,1729245096436,-500.0,0.0001589,2]
[340441981,1729245096446,-500.0,0.0001589,2]
[340441982,1729245096455,-500.0,0.0001589,2]
[340441983,1729245096465,-781.11,0.0001589,2]
[340441984,1729245096474,-520.00299064,0.0001589,2]
[340441985,1729245096484,-1193.67,0.0001589,2]
[340441986,1729245096493,-327.0941948,0.0001589,2]
[340441987,1729245096502,-500.0,0.0001589,2]
[340441988,1729245096512,-500.0,0.0001589,2]
[340441989,1729245096522,-500.0,0.0001589,2]
[340441990,1729245096532,-1153.0,0.0001589,2]
[340441991,1729245096541,-594.17485792,0.0001589,2]
[340441992,1729245096551,-964.73,0.0001589,2]
[340441993,1729245096560,-500.0,0.0001589,2]
[340441994,1729245096570,-818.7,0.0001589,2]
[340441995,1729245096580,-500.0,0.0001589,2]
[340441996,1729245096589,-881.33,0.0001589,2]
[340441997,1729245096598,-500.0,0.0001589,2]
[340441998,1729245096608,-500.0,0.0001589,2]
[340441999,1729245096617,-500.0,0.0001589,2]
[340442000,1729245096627,-661.9,0.0001589,2]
[340442001,1729245096637,-500.0,0.0001589,2]
[340442002,1729245096647,-500.0,0.0001589,2]
[340442003,1729245096656,-500.0,0.0001589,2]
[340442004,1729245096666,-500.0,0.0001589,2]
[340442005,1729245096676,-500.0,0.0001589,2]
[340442006,1729245096685,-500.0,0.0001589,2]
[340442007,1729245096694,-500.0,0.0001589,2]
[340442008,1729245096704,-1062.73,0.0001589,2]
[340442009,1729245096713,-500.0,0.0001589,2]
[340442010,1729245096723,-1206.32,0.0001589,2]
[340442011,1729245096732,-500.0,0.0001589,2]
[340442012,1729245096742,-500.0,0.0001589,2]
[340442013,1729245096751,-1395.24,0.0001589,2]
[340442014,1729245096761,-500.0,0.0001589,2]
[340442015,1729245096771,-1145.55,0.0001589,2]
[340442016,1729245096780,-500.0,0.0001589,2]
[340442017,1729245096790,-1054.58,0.0001589,2]
[340442018,1729245096800,-500.0,0.0001589,2]
[340442019,1729245096809,-500.0,0.0001589,2]
[340442020,1729245096819,-513.36454338,0.0001589,2]
[340442021,1729245096828,-1000.0,0.0001589,2]
[340442022,1729245096838,-500.0,0.0001589,2]
[340442023,1729245096848,-500.0,0.0001589,2]
[340442024,1729245096858,-738.95,0.0001589,2]
[340442025,1729245096867,-1000.56,0.0001589,2]
[340442026,1729245096876,-519.19268336,0.0001589,2]
[340442027,1729245096886,-500.0,0.0001589,2]
[340442028,1729245096895,-1096.22,0.0001589,2]
[340442029,1729245096905,-500.0,0.0001589,2]
[340442030,1729245096916,-1069.71,0.0001589,2]
[340442031,1729245096926,-1397.58,0.0001589,2]
[340442032,1729245096936,-525.48845868,0.0001589,2]
[340442033,1729245096945,-500.0,0.0001589,2]
[340442034,1729245096955,-500.0,0.0001589,2]
[340442035,1729245096964,-1428.87,0.0001589,2]
[340442036,1729245096974,-500.0,0.0001589,2]
[340442037,1729245096984,-895.03,0.0001589,2]
[340442038,1729245096998,-3993.05,0.0001589,2]
[340442039,1729245097008,-500.0,0.0001589,2]
[340442040,1729245097018,-537.53313158,0.0001589,2]
[340442041,1729245097028,-500.0,0.0001589,2]
[340442042,1729245097038,-500.0,0.0001589,2]
[340442043,1729245097048,-1157.15,0.0001589,2]
[340442044,1729245097061,-500.0,0.0001589,2]
[340442045,1729245097073,-536.15813159,0.0001589,2]
[340442046,1729245097083,-500.0,0.0001589,2]
[340442047,1729245097093,-532.6,0.0001589,2]
[340442048,1729245097103,-1870.26,0.0001589,2]
[340442049,1729245097113,-866.7,0.0001589,2]
[340442050,1729245097123,-500.0,0.0001589,2]
[340442051,1729245097132,-730.02,0.0001589,2]
[340442052,1729245097141,-896.36,0.0001589,2]
[340442053,1729245097150,-500.0,0.0001589,2]
[340442054,1729245097160,-973.26,0.0001589,2]
[340442055,1729245097169,-654.42,0.0001589,2]
[340442056,1729245097179,-562.62,0.0001589,2]
[340442057,1729245097190,-3473.75,0.0001589,2]
[340442058,1729245097327,-500.0,0.0001589,2]
[340442059,1729245097336,-500.0,0.0001589,2]
[340442060,1729245097346,-500.0,0.0001589,2]
[340442061,1729245097355,-1013.32,0.0001589,2]
[340442062,1729245097364,-884.31,0.0001589,2]
[340442063,1729245097374,-521.24616548,0.0001589,2]
[340442064,1729245097384,-663.59,0.0001589,2]
[340442065,1729245097394,-1044.47,0.0001589,2]
[340442066,1729245097403,-533.7055435,0.0001589,2]
[340442067,1729245097412,-500.0,0.0001589,2]
[340442068,1729245097422,-500.0,0.0001589,2]
[340442069,1729245097431,-1124.46,0.0001589,2]
[340442070,1729245097440,-500.0,0.0001589,2]
[340442071,1729245097450,-681.61,0.0001589,2]
[340442072,1729245097461,-500.0,0.0001589,2]
[340442073,1729245097469,-1167.43,0.0001589,2]
[340442074,1729245097479,-500.0,0.0001589,2]
[340442075,1729245097489,-500.0,0.0001589,2]
[340442076,1729245097498,-1087.29,0.0001589,2]
[340442077,1729245097508,-500.0,0.0001589,2]
[340442078,1729245097518,-765.82,0.0001589,2]
[340442079,1729245097527,-767.62,0.0001589,2]
[340442080,1729245097536,-500.0,0.0001589,2]
[340442081,1729245097546,-500.0,0.0001589,2]
[340442082,1729245097555,-1280.97,0.0001589,2]
[340442083,1729245097564,-500.0,0.0001589,2]
[340442084,1729245097575,-500.0,0.0001589,2]
[340442085,1729245097584,-281.64867117,0.0001589,2]
[340442086,1729245097594,-500.0,0.0001589,2]
[340442087,1729245097605,-1114.77,0.0001589,2]
[340442088,1729245097615,-517.44898728,0.0001589,2]
[340442089,1729245097626,-1426.78,0.0001589,2]
[340442090,1729245097637,-500.0,0.0001589,2]
[340442091,1729245097648,-567.99297538,0.0001589,2]
[340442092,1729245097658,-767.47,0.0001589,2]
[340442093,1729245097667,-392.44,0.0001589,2]
[340442094,1729245097677,-361.97570149,0.0001589,2]
[340442095,1729245097687,-500.0,0.0001589,2]
[340442096,1729245097696,-463.62058028,0.0001589,2]
[340442097,1729245097706,-1411.42,0.0001589,2]
[340442098,1729245097716,-545.45,0.0001589,2]
[340442099,1729245097726,-500.0,0.0001589,2]
[340442100,1729245097735,-500.0,0.0001589,2]
[340442101,1729245097745,-788.01,0.0001589,2]
[340442102,1729245097755,-565.93592326,0.0001589,2]
[340442103,1729245097765,-500.0,0.0001589,2]
[340442104,1729245097775,-2395.03,0.0001589,2]
[340442105,1729245097784,-440.49640139,0.0001589,2]
[340442106,1729245097793,-1150.17,0.0001589,2]
[340442107,1729245097802,-500.0,0.0001589,2]
[340442108,1729245097812,-536.26,0.0001589,2]
[340442109,1729245097824,-573.28115027,0.0001589,2]
[340442110,1729245097837,-500.0,0.0001589,2]
[340442111,1729245097846,-450.0,0.0001589,2]
[340442112,1729245097855,-490.68510463,0.0001589,2]
[340442113,1729245097864,-516.82746039,0.0001589,2]
[340442114,1729245097873,-1909.08,0.0001589,2]
[340442115,1729245097882,-2396.15,0.0001589,2]
[340442116,1729245097892,-856.8,0.0001589,2]
[340442117,1729245097902,-516.02559794,0.0001589,2]
[340442118,1729245097911,-500.0,0.0001589,2]
[340442119,1729245097920,-500.0,0.0001589,2]
[340442120,1729245097929,-500.0,0.0001589,2]
[340442121,1729245097939,-500.0,0.0001589,2]
[340442122,1729245097949,-581.65812176,0.0001589,2]
[340442123,1729245097958,-500.0,0.0001589,2]
[340442124,1729245097967,-500.0,0.0001589,2]
[340442125,1729245097976,-500.0,0.0001589,2]
[340442126,1729245097985,-837.39,0.0001589,2]
[340442127,1729245098000,-1324.5,0.0001589,2]
[340442128,1729245098010,-500.0,0.0001589,2]
[340442129,1729245098019,-500.0,0.0001589,2]
[340442130,1729245098030,-500.0,0.0001589,2]
[340442131,1729245098040,-500.0,0.0001589,2]
[340442132,1729245098050,-500.0,0.0001589,2]
[340442133,1729245098059,-1031.32,0.0001589,2]
[340442134,1729245098069,-537.09275489,0.0001589,2]
[340442135,1729245098078,-2844.57,0.0001589,2]
[340442136,1729245098088,-500.0,0.0001589,2]
[340442137,1729245098097,-969.83,0.0001589,2]
[340442138,1729245098107,-603.41,0.0001589,2]
[340442139,1729245098116,-516.67355649,0.0001589,2]
[340442140,1729245098125,-2511.79,0.0001589,2]
[340442141,1729245098134,-2957.21,0.0001589,2]
[340442142,1729245098143,-500.0,0.0001589,2]
[340442143,1729245098152,-825.51,0.0001589,2]
[340442144,1729245098162,-1311.74,0.0001589,2]
[340442145,1729245098171,-500.0,0.0001589,2]
[340442146,1729245098180,-1111.47,0.0001589,2]
[340442147,1729245098189,-500.0,0.0001589,2]
[340442148,1729245098198,-2679.77,0.0001589,2]
[340442149,1729245098208,-267.24,0.0001589,2]
[340442150,1729245098218,-500.0,0.0001589,2]
[340442151,1729245098227,-1031.42,0.0001589,2]
[340442152,1729245098238,-552.78849006,0.0001589,2]
[340442153,1729245098248,-12162.79,0.0001589,2]
[340442154,1729245098257,-324.80187353,0.0001589,2]
[340442155,1729245098267,-550.29,0.0001589,2]
[340442156,1729245098277,-930.26,0.0001589,2]
[340442157,1729245098286,-1897.2,0.0001589,2]
[340442158,1729245098299,-500.0,0.0001589,2]
[340442159,1729245098322,-500.0,0.0001589,2]
[340442160,1729245098340,-878.22,0.0001589,2]
[340442161,1729245098363,-957.88,0.0001589,2]
[340442162,1729245098383,-500.0,0.0001589,2]
[340442163,1729245098401,-927.39,0.0001589,2]
[340442164,1729245098419,-937.09,0.0001589,2]
[340442165,1729245098434,-500.0,0.0001589,2]
[340442166,1729245098451,-1899.07,0.0001589,2]
[340442167,1729245098471,-500.0,0.0001589,2]
[340442168,1729245098489,-500.0,0.0001589,2]
[340442169,1729245098501,-1019.75,0.0001589,2]
[340442170,1729245098522,-500.0,0.0001589,2]
[340442171,1729245098541,-500.0,0.0001589,2]
[340442172,1729245098557,-1189.31,0.0001589,2]
[340442173,1729245098572,-1139.43,0.0001589,2]
[340442174,1729245098587,-2950.09,0.0001589,2]
[340442175,1729245098602,-183.01654402,0.0001589,2]
[340442176,1729245098616,-1270.25,0.0001589,2]
[340442177,1729245098631,-500.0,0.0001589,2]
[340442178,1729245098645,-6008.62,0.0001589,2]
[340442179,1729245098660,-500.0,0.0001589,2]
[340442180,1729245098675,-2190.69,0.0001589,2]
[340442181,1729245098689,-500.0,0.0001589,2]
[340442182,1729245098704,-733.35,0.0001589,2]
[340442183,1729245098718,-500.0,0.0001589,2]
[340442184,1729245098733,-530.74248655,0.0001589,2]
[340442185,1729245098748,-500.0,0.0001589,2]
[340442186,1729245098762,-878.59,0.0001589,2]
[340442187,1729245098777,-825.29,0.0001589,2]
[340442188,1729245098791,-1028.34,0.0001589,2]
[340442189,1729245098808,-500.0,0.0001589,2]
[340442190,1729245098824,-1201.91,0.0001589,2]
[340442191,1729245098838,-500.0,0.0001589,2]
[340442192,1729245098853,-1749.48,0.0001589,2]
[340442193,1729245098868,-500.0,0.0001589,2]
[340442194,1729245098883,-966.84,0.0001589,2]
[340442195,1729245098898,-500.0,0.0001589,2]
[340442196,1729245098913,-881.76,0.0001589,2]
[340442197,1729245098929,-261.87130359,0.0001589,2]
[340442198,1729245098943,-1769.45,0.0001589,2]
[340442199,1729245098961,-500.0,0.0001589,2]
[340442200,1729245098977,-500.0,0.0001589,2]
[340442201,1729245098992,-2105.24,0.0001589,2]
[340442202,1729245099008,-1860.09,0.0001589,2]
[340442203,1729245099023,-1152.94,0.0001589,2]
[340442204,1729245099039,-1255.91,0.0001589,2]
[340442205,1729245099055,-553.14066154,0.0001589,2]
[340442206,1729245099071,-1691.98,0.0001589,2]
[340442207,1729245099085,-500.0,0.0001589,2]
[340442208,1729245099102,-500.0,0.0001589,2]
[340442209,1729245099118,-1098.67,0.0001589,2]
[340442210,1729245099134,-1725.58,0.0001589,2]
[340442211,1729245099151,-500.0,0.0001589,2]
[340442212,1729245099167,-314.59799337,0.0001589,2]
[340442213,1729245099182,-500.0,0.0001589,2]
[340442214,1729245099198,-1142.96,0.0001589,2]
[340442215,1729245099213,-500.0,0.0001589,2]
[340442216,1729245099228,-1239.72,0.0001589,2]
[340442217,1729245099243,-500.0,0.0001589,2]
[340442218,1729245099257,-915.71,0.0001589,2]
[340442219,1729245099271,-500.0,0.0001589,2]
[340442220,1729245099286,-1461.93,0.0001589,2]
[340442221,1729245099302,-2139.87,0.0001589,2]
[340442222,1729245099317,-1360.3,0.0001589,2]
[340442223,1729245099334,-500.0,0.0001589,2]
[340442224,1729245099349,-500.0,0.0001589,2]
[340442225,1729245099362,-1004.65,0.0001589,2]
[340442226,1729245099376,-814.29,0.0001589,2]
[340442227,1729245099391,-557.79204245,0.0001589,2]
[340442228,1729245099407,-500.0,0.0001589,2]
[340442229,1729245099421,-1014.14,0.0001589,2]
[340442230,1729245099435,-500.0,0.0001589,2]
[340442231,1729245099449,-10684.06,0.0001589,2]
[340442232,1729245099462,-500.0,0.0001589,2]
[340442233,1729245099478,-2848.42,0.0001589,2]
[340442234,1729245099492,-9831.04,0.0001589,2]
[340442235,1729245099506,-500.0,0.0001589,2]
[340442236,1729245099520,-381.66011336,0.0001589,2]
[340442237,1729245099534,-500.0,0.0001589,2]
[340442238,1729245099548,-500.0,0.0001589,2]
[340442239,1729245099563,-500.0,0.0001589,2]
[340442240,1729245099578,-500.0,0.0001589,2]
[340442241,1729245099592,-1297.67,0.0001589,2]
[340442242,1729245099606,-1132.53,0.0001589,2]
[340442243,1729245099620,-1817.3,0.0001589,2]
[340442244,1729245099635,-500.0,0.0001589,2]
[340442245,1729245099649,-500.0,0.0001589,2]
[340442246,1729245099663,-500.0,0.0001589,2]
[340442247,1729245099677,-2100.8,0.0001589,2]
[340442248,1729245099692,-846.3,0.0001589,2]
[340442249,1729245099706,-500.0,0.0001589,2]
[340442250,1729245099721,-879.74,0.0001589,2]
[340442251,1729245099735,-500.0,0.0001589,2]
[340442252,1729245099749,-1320.86,0.0001589,2]
[340442253,1729245099764,-500.0,0.0001589,2]
[340442254,1729245099779,-1019.81,0.0001589,2]
[340442255,1729245099794,-500.0,0.0001589,2]
[340442256,1729245099974,-840.9,0.0001589,2]
[340442257,1729245100010,-500.0,0.0001589,2]
[340442258,1729245100019,-500.0,0.0001589,2]
[340442259,1729245100028,-534.68,0.0001589,2]
[340442260,1729245100038,-1568.55,0.0001589,2]
[340442261,1729245100047,-849.66,0.0001589,2]
[340442262,1729245100056,-500.0,0.0001589,2]
[340442263,1729245100065,-500.0,0.0001589,2]
[340442264,1729245100075,-500.0,0.0001589,2]
[340442265,1729245100084,-1763.86,0.0001589,2]
[340442266,1729245100094,-636.18,0.0001589,2]
[340442267,1729245100103,-554.66,0.0001589,2]
[340442268,1729245100112,-1104.89,0.0001589,2]
[340442269,1729245100121,-71991.77,0.0001589,2]
[340442270,1729245100130,-500.0,0.0001589,2]
[340442271,1729245100140,-500.0,0.0001589,2]
[340442272,1729245100150,-500.0,0.0001589,2]
[340442273,1729245100159,-500.0,0.0001589,2]
[340442274,1729245100168,-500.0,0.0001589,2]
[340442275,1729245100177,-1069.99,0.0001589,2]
[340442276,1729245100186,-513.98513125,0.0001589,2]
[340442277,1729245100195,-8143.49,0.0001589,2]
[340442278,1729245100205,-507.68,0.0001589,2]
[340442279,1729245100214,-657.05,0.0001589,2]
[340442280,1729245100224,-922.11,0.0001589,2]
[340442281,1729245100233,-500.0,0.0001589,2]
[340442282,1729245100242,-1177.72,0.0001589,2]
[340442283,1729245100251,-500.0,0.0001589,2]
[340442284,1729245100261,-500.0,0.0001589,2]
[340442285,1729245100270,-558.29,0.0001589,2]
[340442286,1729245100279,-500.0,0.0001589,2]
[340442287,1729245100289,-1098.87,0.0001589,2]
[340442288,1729245100298,-500.0,0.0001589,2]
[340442289,1729245100307,-939.41,0.0001589,2]
[340442290,1729245100316,-525.32679288,0.0001589,2]
[340442291,1729245100327,-1116.8,0.0001589,2]
[340442292,1729245100336,-1215.85,0.0001589,2]
[340442293,1729245100345,-1144.65,0.0001589,2]
[340442294,1729245100355,-500.0,0.0001589,2]
[340442295,1729245100364,-945.11,0.0001589,2]
[340442296,1729245100373,-898.62,0.0001589,2]
[340442297,1729245100382,-500.0,0.0001589,2]
[340442298,1729245100392,-892.4,0.0001589,2]
[340442299,1729245100401,-500.0,0.0001589,2]
[340442300,1729245100410,-546.32352019,0.0001589,2]
[340442301,1729245100420,-500.0,0.0001589,2]
[340442302,1729245100429,-500.0,0.0001589,2]
[340442303,1729245100438,-1156.23,0.0001589,2]
[340442304,1729245100447,-608.63420799,0.0001589,2]
[340442305,1729245100456,-2910.0,0.0001595,2]
[340442306,1729245100465,-1152.0,0.0001599,2]
[340442307,1729245100474,-3000.0,0.00016,2]
[340442308,1729245100483,-3000.0,0.0001601,2]
[340442309,1729245100492,-3000.0,0.0001602,2]
[340442310,1729245100501,-3000.0,0.0001603,2]
[340442311,1729245100510,-3000.0,0.0001604,2]
[340442312,1729245100520,-3000.0,0.0001605,2]